bitfinex/quotes_ETHUSD_20240825
["timestamp","ask_amount","ask_price","bid_price","bid_amount"]
[1724591669686,1.12234233,2757.2,2757.1,4.6204723]
[1724591675391,1.12234233,2757.2,2757.1,3.62699]
[1724591677746,1.52368949,2757.2,2757.1,3.62699]
[1724591684311,1.52368949,2757.2,2756.9,7.2544]
[1724591684498,1.14222249,2757.0,2756.9,3.62716]
[1724591687016,1.14222249,2757.0,2756.8,3.62739]
[1724591687217,1.14222249,2756.9,2756.7,3.62752]
[1724591687462,1.14222249,2756.8,2756.6,3.62758]
[1724591687600,1.14222249,2756.8,2756.6,4.26679457]
[1724591687941,1.14222249,2756.7,2756.6,4.26679457]
[1724591688441,1.14222249,2756.8,2756.7,3.62752]
[1724591688918,1.52368949,2756.9,2756.7,3.62752]
[1724591689301,1.14235221,2756.8,2756.7,3.62752]
[1724591689820,1.14235221,2756.8,2756.7,8.04447746]
[1724591690038,1.14235221,2756.9,2756.8,7.25478]
[1724591690211,1.14235221,2757.0,2756.9,7.25452]
[1724591698067,1.14235221,2757.1,2757.0,3.62713]
[1724591698278,1.14235221,2757.1,2757.0,4.595099]
[1724591699573,1.14235221,2757.1,2757.0,8.222229]
[1724591699784,1.14235221,2757.2,2757.1,7.25398]
[1724591700086,1.14235221,2757.3,2757.2,3.62686]
[1724591700254,1.14235221,2757.3,2757.2,4.7465719]
[1724591701954,1.14235221,2757.4,2757.2,4.7465719]
[1724591702900,3.47085221,2757.3,2757.2,4.7465719]
[1724591703094,3.47085221,2757.3,2757.2,3.62686]
[1724591703568,3.47085221,2757.3,2756.8,3.62728]
[1724591703764,3.47085221,2757.3,2756.9,3.62718]
[1724591703765,1.14235221,2757.2,2756.9,3.62718]
[1724591704378,1.14235221,2757.2,2756.9,7.25435]
[1724591704577,1.14235221,2757.1,2756.9,7.25435]
[1724591704783,1.14235221,2757.1,2756.9,8.05873875]
[1724591704963,1.14235221,2757.1,2756.9,4.43154875]
[1724591705170,1.14235221,2757.1,2756.9,8.05872875]
[1724591705369,1.14235221,2757.2,2756.9,8.05872875]
[1724591705569,1.14235221,2757.2,2757.0,3.62711]
[1724591705807,0.06317842,2757.1,2757.0,3.62711]
[1724591706415,1.14235221,2757.2,2757.0,3.62711]
[1724591706866,1.14235221,2757.1,2757.0,3.62711]
[1724591707269,1.52368949,2757.2,2757.0,3.62711]
[1724591708169,1.52368949,2757.1,2757.0,3.62711]
[1724591708369,1.52368949,2757.2,2757.0,4.19449435]
[1724591708611,1.52368949,2757.1,2757.0,3.62711]
[1724591708823,1.52368949,2757.2,2757.0,4.19449347]
[1724591708992,1.52368949,2757.2,2757.0,3.62711]
[1724591709195,1.52368949,2757.1,2757.0,3.62711]
[1724591709398,1.52368949,2757.1,2757.0,4.19449397]
[1724591710206,1.52368949,2757.1,2757.0,0.56738397]
[1724591710409,1.52368949,2757.1,2756.8,7.25459]
[1724591710610,1.52368949,2757.1,2756.9,4.19464079]
[1724591710772,1.52368949,2757.1,2756.8,3.62728]
[1724591710978,1.14228078,2756.9,2756.8,3.62728]
[1724591711373,1.14228078,2756.9,2756.8,4.19468833]
[1724591713815,1.14228078,2756.9,2756.8,0.56740833]
[1724591714025,1.52368949,2756.9,2756.8,0.56740833]
[1724591714329,3.85136574,2756.9,2756.6,0.56743407]
[1724591714503,1.14214121,2756.7,2756.5,3.62771]
[1724591714839,1.14214121,2756.7,2756.6,0.56745185]
[1724591715138,1.14214121,2756.7,2756.5,3.62771]
[1724591715302,1.14214121,2756.7,2756.6,0.56745329]
[1724591715501,1.14214121,2756.8,2756.6,0.56745329]
[1724591715738,1.14214121,2756.7,2756.5,3.62771]
[1724591715933,1.14214121,2756.7,2756.6,0.56744366]
[1724591716445,1.14214121,2756.8,2756.6,0.56744366]
[1724591716737,1.14214121,2756.8,2756.5,3.62771]
[1724591716917,1.14214121,2756.8,2756.6,0.56744661]
[1724591717114,1.14214121,2756.8,2756.6,3.62765]
[1724591719205,1.14214121,2756.8,2756.6,4.10386731]
[1724591719605,1.14214121,2756.8,2756.6,3.62765]
[1724591724954,3.40244121,2756.8,2756.5,7.25541]
[1724591725267,3.40244121,2756.8,2756.5,3.6277]
[1724591725667,3.40244121,2756.8,2756.5,7.2554]
[1724591726035,3.40244121,2756.8,2756.5,3.6277]
[1724591726384,1.14214121,2756.7,2756.5,3.6277]
[1724591726885,1.14214121,2756.6,2756.5,3.6277]
[1724591727252,1.20533986,2756.7,2756.5,3.6277]
[1724591727568,1.14214121,2756.6,2756.3,3.62794]
[1724591727752,1.14214121,2756.6,2756.3,7.2559]
[1724591727942,1.14214121,2756.6,2756.4,3.62791]
[1724591729381,1.20533986,2756.7,2756.4,3.62791]
[1724591729581,1.14214121,2756.6,2756.4,3.62791]
[1724591730939,1.14214121,2756.6,2756.3,3.62794]
[1724591731145,1.20533986,2756.7,2756.3,3.62794]
[1724591731369,1.14214121,2756.6,2756.3,3.62794]
[1724591731538,1.20533986,2756.7,2756.3,7.981508]
[1724591731735,1.20533986,2756.7,2756.3,4.353558]
[1724591732273,1.20533986,2756.7,2756.3,7.981538]
[1724591733038,1.20533986,2756.7,2756.3,4.353558]
[1724591734634,1.20533986,2756.7,2756.4,3.62788]
[1724591734867,0.06319865,2756.7,2756.4,3.62788]
[1724591735250,0.06319865,2756.7,2756.4,4.4260238]
[1724591739384,0.06319865,2756.7,2756.0,4.19696831]
[1724591739385,7.03023121,2756.5,2756.0,4.19696831]
[1724591739590,7.03023121,2756.5,2755.9,6.07388]
[1724591740090,7.03023121,2756.5,2756.0,3.62837]
[1724591740962,7.03023121,2756.5,2755.9,6.07388]
[1724591742149,7.03023121,2756.5,2756.0,3.62843]
[1724591747363,0.06320506,2756.4,2756.0,3.62843]
[1724591747563,0.06320506,2756.4,2756.0,4.598661]
[1724591748205,1.20534627,2756.4,2756.0,4.598661]
[1724591748369,0.06320506,2756.4,2756.0,4.598661]
[1724591749200,1.20534627,2756.4,2756.0,4.598661]
[1724591750507,0.06320506,2756.4,2756.0,4.598661]
[1724591750665,1.20534627,2756.4,2756.0,4.598661]
[1724591752864,1.20534627,2756.4,2756.0,8.227091]
[1724591753109,1.20534627,2756.4,2756.0,4.598661]
[1724591753277,3.40244121,2756.5,2756.0,8.227001]
[1724591753605,3.40244121,2756.5,2756.1,3.62831]
[1724591755308,1.14214121,2756.5,2756.1,4.36670847]
[1724591755740,1.14214121,2756.5,2756.3,3.62795]
[1724591756007,1.14214121,2756.6,2756.3,3.62795]
[1724591758295,1.14214121,2756.5,2756.3,3.62795]
[1724591758473,1.14214121,2756.5,2756.3,4.585549]
[1724591758809,1.14214121,2756.6,2756.3,4.585549]
[1724591759107,1.14214121,2756.5,2756.3,4.585549]
[1724591759974,1.14214121,2756.6,2756.3,4.585549]
[1724591760531,1.14214121,2756.6,2755.9,6.28824686]
[1724591760532,2.455,2756.4,2755.9,6.28824686]
[1724591760674,3.59714121,2756.4,2756.0,3.62842]
[1724591762309,3.59714121,2756.4,2756.1,3.62828]
[1724591762541,1.14214121,2756.4,2756.1,3.62828]
[1724591762720,7.54150574,2756.6,2756.1,4.585935]
[1724591762721,1.14214121,2756.5,2756.1,4.585935]
[1724591764277,1.14214121,2756.4,2756.1,4.585935]
[1724591764476,1.14214121,2756.5,2756.1,3.62828]
[1724591764878,1.14214121,2756.4,2756.1,3.62828]
[1724591766125,1.14214121,2756.4,2756.1,3.62824]
[1724591768494,1.14214121,2756.3,2756.1,3.62824]
[1724591770420,1.14214121,2756.4,2756.2,3.62818]
[1724591770609,1.52286574,2756.5,2756.2,3.62818]
[1724591770610,1.14214121,2756.5,2756.2,3.62818]
[1724591771009,1.14214121,2756.4,2756.2,3.62818]
[1724591771211,1.14214121,2756.5,2756.2,3.62818]
[1724591771918,1.14214121,2756.5,2756.2,6.05678]
[1724591772090,1.14214121,2756.4,2756.2,6.05678]
[1724591774489,1.14214121,2756.4,2756.1,3.62824]
[1724591774813,1.14214121,2756.3,2756.1,3.62824]
[1724591776252,1.14214121,2756.4,2756.1,4.353915]
[1724591776389,1.14214121,2756.3,2756.1,3.62824]
[1724591776797,1.14214121,2756.4,2756.2,3.62818]
[1724591777034,1.14214121,2756.4,2756.3,6.05665]
[1724591777298,8.98286574,2756.7,2756.5,3.62778]
[1724591777535,1.14247758,2756.6,2756.4,7.25567]
[1724591777695,1.14247758,2756.6,2756.4,3.62783]
[1724591778395,1.14247758,2756.6,2756.4,7.25568]
[1724591778598,1.14247758,2756.6,2756.5,7.25556]
[1724591778856,1.14247758,2756.7,2756.6,9.6839]
[1724591779132,1.14247758,2756.9,2756.8,3.62739]
[1724591779294,1.14247758,2757.0,2756.8,3.62739]
[1724591780410,1.14247758,2757.1,2756.8,3.62739]
[1724591781659,1.14247758,2757.1,2756.9,3.62722]
[1724591781806,1.52286574,2757.2,2757.0,3.62713]
[1724591781807,1.14247758,2757.2,2757.0,3.62713]
[1724591782002,1.14247758,2757.2,2757.1,3.62699]
[1724591782228,1.14247758,2757.3,2757.2,3.62686]
[1724591782409,1.14247758,2757.4,2757.3,3.62673]
[1724591782744,8.60247758,2757.5,2757.3,3.62673]
[1724591783349,8.60247758,2757.5,2757.3,7.25338]
[1724591783706,8.60247758,2757.5,2757.3,3.62665]
[1724591784302,7.46,2757.5,2757.3,3.62665]
[1724591787852,1.14247758,2757.7,2757.3,3.62665]
[1724591788837,1.14247758,2757.8,2757.5,3.62639]
[1724591789047,8.60247758,2757.9,2757.7,3.62621]
[1724591789249,7.46,2757.9,2757.7,3.62621]
[1724591789852,7.46,2757.9,2757.8,2.3325]
[1724591790437,7.46,2757.9,2757.7,3.62621]
[1724591792428,7.46,2757.9,2757.7,4.58471]
[1724591793847,24.43798758,2758.3,2757.7,4.58471]
[1724591794156,12.22798758,2758.3,2757.7,4.58471]
[1724591794365,12.22798758,2758.3,2757.8,3.62603]
[1724591794680,3.46677758,2758.6,2758.1,3.62566]
[1724591794837,2.3243,2758.6,2757.9,5.95833]
[1724591795045,2.3243,2758.6,2758.0,4.221553]
[1724591795568,2.3243,2758.6,2758.1,3.62566]
[1724591796337,2.3243,2758.6,2758.2,3.62554]
[1724591799469,2.3243,2758.6,2758.3,3.62541]
[1724591799858,2.3243,2758.6,2758.2,3.62554]
[1724591800064,2.3243,2758.6,2758.2,4.4102533]
[1724591804509,2.3243,2758.6,2758.2,3.62554]
[1724591809862,0.06315529,2758.5,2758.2,3.62554]
[1724591815172,0.06315529,2758.5,2758.2,7.25101]
[1724591815777,0.06315529,2758.5,2758.2,9.63171]
[1724591816389,0.06315529,2758.5,2758.3,3.62541]
[1724591816580,0.06315529,2758.5,2758.4,4.588448]
[1724591817588,0.06315529,2758.5,2758.2,7.25091]
[1724591817771,0.06315529,2758.5,2758.2,3.62544]
[1724591818360,0.06315529,2758.5,2758.3,0.55]
[1724591822788,2.4811,2758.4,2758.0,4.221563]
[1724591822977,2.4811,2758.4,2758.1,0.55]
[1724591823677,2.4811,2758.4,2757.9,3.6259]
[1724591823886,2.4811,2758.4,2758.0,0.55]
[1724591825120,2.4811,2758.4,2758.0,7.80152]
[1724591825365,2.4811,2758.4,2758.0,4.955912]
[1724591825521,1.14247758,2758.5,2758.1,3.62568]
[1724591826510,1.14247758,2758.4,2758.2,3.62549]
[1724591826709,1.14247758,2758.5,2758.2,3.62549]
[1724591827024,1.14247758,2758.6,2758.2,3.62549]
[1724591827368,1.14247758,2758.5,2758.2,3.62549]
[1724591827709,1.14247758,2758.5,2758.4,3.62529]
[1724591827918,1.14247758,2758.5,2758.4,4.17529]
[1724591828070,1.14247758,2758.5,2758.4,3.62529]
[1724591828277,2.4811,2758.4,2758.2,3.62554]
[1724591828604,3.62059767,2758.4,2758.2,3.62554]
[1724591830586,1.13949767,2758.3,2758.2,3.62554]
[1724591830778,3.62059767,2758.4,2758.2,3.62554]
[1724591831404,1.13949767,2758.3,2758.2,3.62554]
[1724591833597,4.00396574,2758.4,2758.2,3.62554]
[1724591834101,1.14088107,2758.3,2758.2,3.62554]
[1724591834298,1.52286574,2758.3,2758.2,3.62554]
[1724591834818,1.52286574,2758.4,2758.2,3.62554]
[1724591835421,1.52286574,2758.3,2758.2,3.62554]
[1724591835932,1.14144984,2758.3,2758.2,3.62554]
[1724591836140,1.52286574,2758.4,2758.2,3.62554]
[1724591837238,1.52286574,2758.3,2758.2,3.62554]
[1724591837535,1.52286574,2758.3,2758.2,3.62428164]
[1724591837694,8.84e-06,2758.6,2758.2,4.3492848]
[1724591837908,1.20490031,2759.2,2758.9,3.6246]
[1724591838105,1.90215671,2759.1,2758.6,3.62493]
[1724591838305,1.14111882,2758.8,2758.7,4.17489]
[1724591838503,1.14111882,2758.8,2758.7,7.79978]
[1724591838701,1.90215671,2759.1,2758.7,7.79978]
[1724591838702,1.14111882,2758.9,2758.7,4.954868]
[1724591838924,1.14111882,2758.9,2758.8,3.62476]
[1724591839126,1.14111882,2759.0,2758.9,3.62463]
[1724591839326,1.14111882,2759.0,2758.8,7.24944]
[1724591839709,1.14111882,2759.0,2758.9,3.62463]
[1724591840307,1.14111882,2759.1,2758.9,3.62463]
[1724591841834,1.14111882,2759.1,2759.0,3.6245]
[1724591842155,3.62389,2759.5,2759.0,3.6245]
[1724591842156,1.14111882,2759.2,2759.0,3.6245]
[1724591842315,1.14111882,2759.2,2759.1,4.17437]
[1724591843381,1.14111882,2759.3,2759.1,4.17437]
[1724591843539,1.14111882,2759.2,2759.1,4.17437]
[1724591844057,1.14111882,2759.3,2759.1,4.17437]
[1724591845252,4.26844338,2759.6,2759.1,4.17437]
[1724591845253,1.14111882,2759.4,2759.2,3.62423]
[1724591845573,1.14111882,2759.3,2759.2,3.62423]
[1724591847062,1.14111882,2759.4,2759.0,7.24888]
[1724591847533,1.14111882,2759.4,2759.1,3.62434]
[1724591851349,1.14111882,2759.5,2759.1,3.62434]
[1724591855183,4.30622221,2759.6,2759.1,3.62434]
[1724591855821,1.14111882,2759.5,2759.1,3.62434]
[1724591856116,4.30622221,2759.6,2759.1,3.62434]
[1724591856416,7.92993221,2759.6,2759.1,3.62434]
[1724591856613,1.14111882,2759.5,2759.1,3.62434]
[1724591857178,6.78881339,2759.6,2759.2,2.3198]
[1724591857179,1.14111882,2759.6,2759.2,2.3198]
[1724591857518,8.60111882,2759.7,2759.2,2.3198]
[1724591857720,2.3696,2759.6,2759.1,3.62425]
[1724591857919,2.3696,2759.6,2759.2,0.55]
[1724591858736,0.06313143,2759.5,2759.2,0.55]
[1724591859262,0.06313143,2759.5,2759.2,4.17422]
[1724591860376,0.06313143,2759.5,2759.4,3.62397]
[1724591860803,7.46,2759.7,2759.4,4.17397]
[1724591861444,7.46,2759.7,2759.5,3.62381]
[1724591861714,0.06312593,2759.8,2759.5,3.62381]
[1724591863598,1.20424475,2759.8,2759.5,3.62381]
[1724591863924,0.06312593,2759.8,2759.5,3.62381]
[1724591864093,0.06312593,2759.8,2759.4,0.55]
[1724591864418,1.20424475,2759.8,2759.4,0.55]
[1724591867619,0.06312593,2759.8,2759.4,0.55]
[1724591867924,0.06312593,2759.8,2759.4,1.56178]
[1724591869224,0.06312593,2759.8,2759.4,5.18573]
[1724591870721,0.06312593,2759.8,2759.4,1.56178]
[1724591872204,1.20424475,2759.8,2759.4,1.56178]
[1724591872418,0.06312593,2759.8,2759.4,1.56178]
[1724591874099,1.20424475,2759.8,2759.4,1.56178]
[1724591874498,0.06312593,2759.8,2759.4,1.56178]
[1724591874690,1.20424475,2759.8,2759.4,1.56178]
[1724591875692,0.06312593,2759.8,2759.4,1.56178]
[1724591875894,1.20424475,2759.8,2759.4,1.56178]
[1724591876105,7.19912882,2759.7,2759.4,0.55]
[1724591876308,1.14111882,2759.6,2759.1,3.62428]
[1724591876509,1.14111882,2759.6,2759.2,0.55]
[1724591877103,1.14111882,2759.6,2759.2,4.17422]
[1724591878223,3.57551882,2759.7,2759.3,3.62409]
[1724591878713,1.14111882,2759.6,2759.3,3.62409]
[1724591879131,1.14111882,2759.7,2759.3,3.62409]
[1724591880126,1.14111882,2759.6,2759.3,3.62409]
[1724591880310,1.14111882,2759.6,2759.4,1.204009]
[1724591880511,1.14111882,2759.7,2759.4,1.204009]
[1724591881239,1.14111882,2759.6,2759.4,1.204009]
[1724591881640,1.14111882,2759.6,2759.5,3.62384]
[1724591881951,1.14111882,2759.6,2759.5,4.17384]
[1724591883319,1.51869577,2759.7,2759.5,5.0190339]
[1724591883524,1.14052279,2759.6,2759.5,5.0190339]
[1724591885323,1.14052279,2759.6,2759.5,4.17384]
[1724591885823,1.14052279,2759.7,2759.5,6.50024]
[1724591886646,1.14052279,2759.7,2759.5,6.50015]
[1724591886858,1.14052279,2759.7,2759.6,0.55]
[1724591889920,1.14052279,2759.7,2759.6,4.17371]
[1724591890126,0.06312593,2759.8,2759.7,3.62358]
[1724591890434,1.20359014,2759.8,2759.7,4.17358]
[1724591891338,1.20359014,2759.8,2759.7,0.55]
[1724591891538,2.4928,2759.7,2759.4,3.62392]
[1724591891739,0.76022915,2759.5,2759.2,3.62413]
[1724591892062,1.14034373,2759.5,2759.3,1.17902448]
[1724591892262,0.76029523,2759.4,2759.3,4.80312448]
[1724591893195,0.76035413,2759.4,2759.3,4.80312448]
[1724591893897,1.14034373,2759.5,2759.3,8.42722448]
[1724591894100,1.14034373,2759.5,2759.3,4.80312448]
[1724591894302,1.14034373,2759.5,2759.4,0.48031245]
[1724591894484,1.58182427,2759.6,2759.4,0.48031245]
[1724591894688,1.1406362,2759.5,2759.4,0.48031245]
[1724591894865,1.58182427,2759.6,2759.4,0.48031245]
[1724591895199,1.58182427,2759.6,2759.4,4.10428245]
[1724591895559,1.14071136,2759.5,2759.4,4.10428245]
[1724591895784,1.20383986,2759.6,2759.4,4.10428245]
[1724591896096,1.14071136,2759.5,2759.4,4.10428245]
[1724591904114,1.14071136,2759.5,2759.4,7.72825245]
[1724591904416,1.14071136,2759.5,2759.4,10.91247003]
[1724591906719,1.58182427,2759.6,2759.5,7.24768]
[1724591906720,1.20383986,2759.6,2759.5,7.24768]
[1724591906885,1.20383986,2759.6,2759.5,8.95180345]
[1724591908683,1.14071136,2759.6,2759.5,8.95180345]
[1724591910723,1.14071136,2759.6,2759.5,9.29137162]
[1724591910884,1.14071136,2759.6,2759.5,8.95180345]
[1724591911086,1.14071136,2759.6,2759.5,9.29135522]
[1724591911600,0.76050557,2759.7,2759.6,7.24742]
[1724591911795,0.76050557,2759.7,2759.6,7.79742]
[1724591914233,0.76050557,2759.8,2759.7,3.62358]
[1724591914534,0.76050557,2759.8,2759.7,7.79716]
[1724591914731,0.76050557,2759.8,2759.7,8.72624295]
[1724591918340,0.76050557,2759.8,2759.7,9.29301393]
[1724591919607,0.76050557,2759.9,2759.8,3.62345]
[1724591919803,0.76050557,2759.9,2759.8,4.19022098]
[1724591920102,0.76050557,2759.9,2759.8,4.68203672]
[1724591920560,0.76050557,2759.9,2759.8,4.11526574]
[1724591920702,0.76050557,2759.9,2759.8,4.68201138]
[1724591923178,0.76050557,2759.9,2759.8,8.30546138]
[1724591923548,0.76050557,2759.9,2759.8,8.30545639]
[1724591924148,1.14071136,2759.9,2759.8,4.68200639]
[1724591924751,1.58181249,2760.1,2759.9,3.62331]
[1724591924951,1.14022344,2760.0,2759.9,3.62331]
[1724591925315,1.14022344,2760.0,2759.9,4.19005641]
[1724591926948,1.14022344,2760.0,2759.9,7.81336641]
[1724591927111,1.14022344,2760.0,2759.9,8.17586494]
[1724591927453,1.14022344,2760.0,2759.9,8.74259527]
[1724591927648,1.14022344,2760.1,2759.9,8.74259527]
[1724591927853,1.14022344,2760.1,2760.0,3.62318]
[1724591928012,3.80499577,2760.2,2760.0,3.62318]
[1724591928215,1.14017618,2760.1,2760.0,3.62318]
[1724591928418,3.80499577,2760.2,2760.0,3.62318]
[1724591928645,1.51869577,2760.1,2760.0,3.62318]
[1724591929125,1.51869577,2760.2,2760.0,4.44075349]
[1724591929451,1.51869577,2760.2,2760.1,4.17305]
[1724591930637,1.51869577,2760.3,2760.2,3.62292]
[1724591931851,1.51869577,2760.3,2760.2,7.86829475]
[1724591932017,1.32868722,2760.5,2760.2,2.63973953]
[1724591932222,0.75992342,2760.4,2760.3,7.24558]
[1724591932425,0.75992342,2760.4,2760.3,8.36221776]
[1724591932750,0.75992342,2760.4,2760.3,10.00524042]
[1724591933159,0.18881966,2760.5,2760.4,9.61722]
[1724591933366,0.18881966,2760.5,2760.4,10.73385776]
[1724591933367,0.1257064,2760.5,2760.4,10.73385776]
[1724591934016,0.1257064,2760.5,2760.4,10.16722]
[1724591934246,0.1257064,2760.5,2760.4,12.27714229]
[1724591937360,0.1257064,2760.5,2760.4,12.27713341]
[1724591937565,0.1257064,2760.5,2760.4,9.90523341]
[1724591937765,0.1257064,2760.5,2760.4,9.33863127]
[1724591937951,0.1257064,2760.5,2760.4,9.90523341]
[1724591938280,0.1257064,2760.5,2760.4,9.33863127]
[1724591938445,0.1257064,2760.5,2760.4,9.90523341]
[1724591938647,0.1257064,2760.5,2760.4,9.33863127]
[1724591938948,0.1257064,2760.5,2760.4,9.90523341]
[1724591939143,0.1257064,2760.5,2760.4,9.33863127]
[1724591939346,0.1257064,2760.5,2760.4,9.90523341]
[1724591939581,0.1257064,2760.5,2760.4,9.33863127]
[1724591939778,0.1257064,2760.5,2760.4,9.90523341]
[1724591939984,0.1257064,2760.5,2760.4,9.33863127]
[1724591940186,0.1257064,2760.5,2760.4,9.90523341]
[1724591940344,0.1257064,2760.5,2760.4,9.33863127]
[1724591940748,0.1257064,2760.5,2760.4,9.90521738]
[1724591940978,0.1257064,2760.5,2760.4,9.33863127]
[1724591941180,0.1257064,2760.5,2760.4,9.90521738]
[1724591941366,0.1257064,2760.5,2760.4,9.33863127]
[1724591942249,0.1257064,2760.5,2760.4,5.71597127]
[1724591942759,0.1257064,2760.5,2760.4,4.17266]
[1724591948245,0.1257064,2760.5,2760.4,7.79532]
[1724591948526,0.1257064,2760.5,2760.4,4.17266]
[1724591949031,0.1257064,2760.5,2760.4,7.79532]
[1724591949184,0.1257064,2760.5,2760.4,4.17266]
[1724591949386,0.1257064,2760.5,2760.4,8.813913]
[1724591949686,0.1257064,2760.5,2760.4,9.38052453]
[1724591949898,0.1257064,2760.5,2760.4,5.191253]
[1724591950227,0.1257064,2760.5,2760.4,5.75786385]
[1724591950429,0.1257064,2760.5,2760.4,5.191253]
[1724591950726,0.1257064,2760.5,2760.4,4.17266]
[1724591951712,2.6069064,2760.5,2760.4,4.17266]
[1724591951912,2.6069064,2760.5,2760.4,3.62266]
[1724591954539,2.6069064,2760.5,2760.4,4.18929746]
[1724591954743,2.6069064,2760.5,2760.4,3.62266]
[1724591956129,0.1257064,2760.5,2760.4,3.62266]
[1724591959951,0.1257064,2760.5,2760.4,7.24532]
[1724591960135,0.1257064,2760.5,2760.4,7.969854]
[1724591961360,0.1257064,2760.5,2760.4,8.519854]
[1724591968713,0.1257064,2760.5,2760.4,10.946754]
[1724591971627,0.1257064,2760.5,2760.4,13.946754]
[1724591972317,0.1257064,2760.5,2760.4,14.28565226]
[1724591976326,0.1257064,2760.5,2760.4,14.28567161]
[1724591979209,0.1257064,2760.5,2760.4,14.28562067]
[1724591980799,0.1257064,2760.5,2760.4,14.28560799]
[1724591981625,0.1257064,2760.5,2760.4,14.28560657]
[1724591982337,0.1257064,2760.5,2760.4,13.946754]
[1724591982540,0.1257064,2760.5,2760.4,14.28559638]
[1724591985443,0.1257064,2760.5,2760.4,24.175024]
[1724591985444,6.4e-06,2760.5,2760.4,24.175024]
[1724591985840,6.4e-06,2760.5,2760.4,24.51380276]
[1724591986139,6.4e-06,2760.5,2760.4,25.27133768]
[1724591986323,6.4e-06,2760.5,2760.4,20.89114276]
[1724591986523,6.4e-06,2760.5,2760.4,21.64867768]
[1724591987125,6.4e-06,2760.5,2760.4,25.27133768]
[1724591989234,6.4e-06,2760.5,2760.4,20.89114276]
[1724591990543,6.4e-06,2760.5,2760.4,24.51380276]
[1724591990729,6.4e-06,2760.5,2760.4,20.89114276]
[1724591992080,6.4e-06,2760.5,2760.4,20.8912159]
[1724591992234,6.4e-06,2760.5,2760.4,17.9082659]
[1724591992437,6.4e-06,2760.5,2760.4,8.3087059]
[1724591992752,6.4e-06,2760.5,2760.4,7.969854]
[1724591993538,2.3910064,2760.5,2760.4,3.62266]
[1724591993739,2.3910064,2760.5,2760.1,3.62301]
[1724591993740,2.391,2760.4,2760.1,3.62301]
[1724591993936,2.391,2760.4,2760.0,3.62317]
[1724591993937,0.7596277,2760.3,2760.0,3.62317]
[1724591994243,2.391,2760.1,2760.0,3.62318]
[1724591997380,1.13986756,2760.4,2760.0,3.62318]
[1724591997381,0.7596277,2760.3,2760.0,3.62318]
[1724591997668,3.1506277,2760.4,2760.1,0.55]
[1724591997834,3.1506277,2760.4,2760.3,3.62279]
[1724591998040,2.391,2760.4,2760.3,3.62279]
[1724591999981,2.391,2760.4,2760.3,4.17279]
[1724592000185,3.1506277,2760.4,2760.2,3.62283]
[1724592000419,0.7596277,2760.3,2760.0,3.62308]
[1724592000708,3.1506277,2760.4,2760.1,0.55]
[1724592001286,3.1506277,2760.4,2760.2,3.62284]
[1724592002289,0.7596277,2760.3,2760.1,4.17302]
[1724592002480,3.1506277,2760.4,2760.1,4.17302]
[1724592002901,0.7596277,2760.3,2760.1,4.17302]
[1724592003310,3.1506277,2760.4,2760.1,4.17302]
[1724592003679,0.7596277,2760.3,2760.1,4.17302]
[1724592004472,3.1506277,2760.4,2760.1,4.17302]
[1724592006333,3.1506277,2760.4,2760.2,3.62289]
[1724592007550,2.391,2760.4,2760.2,3.62289]
[1724592008145,2.391,2760.4,2760.3,3.62279]
[1724592008359,0.7596341,2760.5,2760.3,3.62279]
[1724592008569,6.4e-06,2760.5,2760.4,7.24532]
[1724592008852,6.4e-06,2760.5,2760.4,10.2170619]
[1724592009050,6.4e-06,2760.5,2760.4,13.8397219]
[1724592009206,6.4e-06,2760.5,2760.4,18.63255591]
[1724592009748,6.4e-06,2760.5,2760.4,14.93745401]
[1724592014216,6.4e-06,2760.5,2760.4,18.56011401]
[1724592014507,6.4e-06,2760.5,2760.4,18.89902864]
[1724592014853,6.4e-06,2760.5,2760.4,19.46553114]
[1724592015603,6.4e-06,2760.5,2760.4,24.15652214]
[1724592016270,6.4e-06,2760.5,2760.4,23.82857914]
[1724592016600,6.4e-06,2760.5,2760.4,21.85653914]
[1724592016801,6.4e-06,2760.5,2760.4,21.51763037]
[1724592017167,6.4e-06,2760.5,2760.4,21.85660168]
[1724592017610,6.4e-06,2760.5,2760.4,19.46563255]
[1724592017818,6.4e-06,2760.5,2760.4,22.00066955]
[1724592019358,6.4e-06,2760.5,2760.4,21.68136955]
[1724592020698,6.4e-06,2760.5,2760.4,20.77585101]
[1724592021117,6.4e-06,2760.5,2760.4,21.11490641]
[1724592021320,6.4e-06,2760.5,2760.4,24.16239261]
[1724592021485,6.4e-06,2760.5,2760.4,23.59590508]
[1724592022719,6.4e-06,2760.5,2760.4,23.59589044]
[1724592023482,6.4e-06,2760.5,2760.4,22.18643344]
[1724592023686,6.4e-06,2760.5,2760.4,19.12658304]
[1724592024122,6.4e-06,2760.5,2760.4,18.56011401]
[1724592024289,6.4e-06,2760.5,2760.4,19.12663041]
[1724592024488,6.4e-06,2760.5,2760.4,22.91364463]
[1724592024902,6.4e-06,2760.5,2760.4,22.17646463]
[1724592025423,6.4e-06,2760.5,2760.4,19.80476463]
[1724592025719,6.4e-06,2760.5,2760.4,22.44876463]
[1724592026391,6.4e-06,2760.5,2760.4,19.80476463]
[1724592026596,6.4e-06,2760.5,2760.4,19.46570566]
[1724592027524,6.4e-06,2760.5,2760.4,19.80474119]
[1724592027886,6.4e-06,2760.5,2760.4,22.09151019]
[1724592030501,6.4e-06,2760.5,2760.4,21.18595826]
[1724592030832,6.4e-06,2760.5,2760.4,22.09145387]
[1724592032699,6.4e-06,2760.5,2760.4,25.37503862]
[1724592033603,6.4e-06,2760.5,2760.4,25.03600042]
[1724592033808,6.4e-06,2760.5,2760.4,25.37500639]
[1724592035337,6.4e-06,2760.5,2760.4,35.46303039]
[1724592035533,6.4e-06,2760.5,2760.4,39.08569039]
[1724592036751,6.4e-06,2760.5,2760.4,35.12402442]
[1724592036903,6.4e-06,2760.5,2760.4,39.08548397]
[1724592037266,6.4e-06,2760.5,2760.4,34.89642585]
[1724592038149,6.4e-06,2760.5,2760.4,43.79562077]
[1724592038326,6.4e-06,2760.5,2760.4,43.09562077]
[1724592038524,6.4e-06,2760.5,2760.4,42.33808585]
[1724592039250,6.4e-06,2760.5,2760.4,34.89642585]
[1724592039909,6.4e-06,2760.5,2760.4,34.55756701]
[1724592040122,6.4e-06,2760.5,2760.4,34.89633449]
[1724592041313,6.4e-06,2760.5,2760.4,35.65386941]
[1724592041510,6.4e-06,2760.5,2760.4,34.89633449]
[1724592042354,6.4e-06,2760.5,2760.4,34.89633752]
[1724592043156,6.4e-06,2760.5,2760.4,35.65387244]
[1724592043528,6.4e-06,2760.5,2760.4,44.27391528]
[1724592043919,6.4e-06,2760.5,2760.4,36.13225528]
[1724592044115,6.4e-06,2760.5,2760.4,35.37472036]